bitfinex/quotes_SOLUSD_20220130
["timestamp","ask_amount","ask_price","bid_price","bid_amount"]
[1643503822621,0.25,94.693,94.594,23.0217]
[1643503822820,15.858,94.69,94.594,23.0217]
[1643503823022,2.83831085,94.689,94.594,23.0217]
[1643503823221,3.08831085,94.689,94.594,23.0217]
[1643503823422,2.83831085,94.688,94.594,23.0217]
[1643503823921,0.25,94.687,94.594,23.0217]
[1643503824422,15.86,94.68,94.594,23.0217]
[1643503824823,0.25,94.679,94.594,23.0217]
[1643503825725,0.25,94.679,94.595,2.25239511]
[1643503826023,0.25,94.693,94.596,0.25]
[1643503826824,15.858,94.69,94.596,0.25]
[1643503827025,15.858,94.69,94.595,0.25]
[1643503827225,0.25,94.689,94.595,0.25]
[1643503827433,0.25,94.689,94.595,105.95]
[1643503827729,0.25,94.689,94.595,108.20239511]
[1643503828026,3.0,94.694,94.595,108.20239511]
[1643503829025,15.858,94.69,94.595,108.20239511]
[1643503829425,0.25,94.689,94.595,108.20239511]
[1643503829624,0.25,94.693,94.595,108.20239511]
[1643503831028,15.858,94.69,94.591,42.46489769]
[1643503831230,31.098,94.69,94.591,42.46489769]
[1643503831427,22.77408696,94.689,94.591,42.46489769]
[1643503831830,2.95669142,94.688,94.591,42.46489769]
[1643503832329,0.25,94.687,94.592,0.25]
[1643503833132,15.861,94.67,94.592,0.25]
[1643503833332,0.25,94.669,94.592,0.25]
[1643503834130,0.25,94.669,94.591,42.46489769]
[1643503834431,15.863,94.66,94.505,78.7219]
[1643503834635,15.24,94.65,94.508,46.9698]
[1643503834830,3.0,94.642,94.509,105.7]
[1643503835230,0.25,94.641,94.51,38.98396752]
[1643503835434,105.7,94.619,94.51,54.22396752]
[1643503835634,63.46,94.617,94.51,38.98396752]
[1643503835833,0.25,94.616,94.51,38.98396752]
[1643503836031,3.16354342,94.616,94.51,38.98396752]
[1643503836231,8.37034388,94.615,94.51,38.98396752]
[1643503836431,15.874,94.6,94.51,38.98396752]
[1643503836630,8.37034388,94.615,94.51,38.98396752]
[1643503836631,15.24,94.61,94.51,38.98396752]
[1643503836832,8.37034388,94.615,94.51,38.98396752]
[1643503836833,0.25,94.599,94.51,38.98396752]
[1643503837033,2.95669142,94.615,94.52,6.0]
[1643503837232,3.0,94.667,94.52,21.24]
[1643503837433,5.8484842,94.694,94.53,190.5]
[1643503837632,15.24,94.71,94.54,227.602]
[1643503837633,15.858,94.7,94.54,227.602]
[1643503837834,15.858,94.7,94.541,47.3421]
[1643503838035,2.83164256,94.699,94.541,177.18313333]
[1643503838233,2.83164256,94.703,94.551,141.09504657]
[1643503838432,2.83164256,94.703,94.561,105.7]
[1643503838633,2.83164256,94.703,94.571,39.66265526]
[1643503838836,2.83164256,94.703,94.58,15.24]
[1643503839157,15.859,94.69,94.58,15.24]
[1643503839433,47.6852,94.689,94.581,0.25]
[1643503839634,2.83164256,94.688,94.581,0.25]
[1643503839837,0.25,94.687,94.581,0.25]
[1643503840236,15.861,94.68,94.581,0.25]
[1643503840637,0.25,94.679,94.581,0.25]
[1643503840835,0.25,94.679,94.571,39.66265526]
[1643503841036,3.0,94.665,94.571,39.66265526]
[1643503841435,3.0,94.657,94.571,39.66265526]
[1643503842037,15.24,94.67,94.572,0.25]
[1643503842239,15.24,94.67,94.581,6.0]
[1643503842639,15.24,94.67,94.582,0.25]
[1643503842841,0.25,94.669,94.582,0.25]
[1643503843942,15.24,94.67,94.572,0.25]
[1643503844144,23.8316,94.675,94.572,0.25]
[1643503844743,23.8316,94.675,94.581,6.0]
[1643503845143,15.863,94.67,94.582,0.25]
[1643503845341,0.25,94.669,94.582,0.25]
[1643503845845,23.8316,94.675,94.582,105.95]
[1643503846043,3.0,94.684,94.592,6.0]
[1643503846242,24.0276,94.689,94.593,46.63670838]
[1643503846441,24.0276,94.689,94.593,46.88670838]
[1643503846643,2.8484842,94.708,94.603,6.0]
[1643503846843,2.8484842,94.718,94.604,24.9473]
[1643503847043,2.8484842,94.718,94.614,6.0]
[1643503847244,2.8484842,94.72,94.615,44.64200117]
[1643503847442,2.8484842,94.72,94.615,69.62370117]
[1643503847643,2.8484842,94.72,94.625,6.0]
[1643503847844,2.8484842,94.721,94.626,0.25]
[1643503848047,0.25,94.72,94.615,44.64200117]
[1643503848245,2.8484842,94.715,94.626,0.25]
[1643503848646,2.8484842,94.713,94.626,0.25]
[1643503848846,24.4452,94.72,94.626,0.25]
[1643503849854,40.3002,94.72,94.618,0.25]
[1643503850056,0.25,94.719,94.618,0.25]
[1643503850255,0.25,94.719,94.616,0.25]
[1643503850459,3.0984842,94.719,94.616,0.25]
[1643503850653,0.25,94.719,94.616,0.25]
[1643503852057,15.858,94.7,94.616,0.25]
[1643503852255,0.25,94.699,94.616,0.25]
[1643503854377,0.25,94.714,94.616,0.25]
[1643503854576,24.6582,94.715,94.616,0.25]
[1643503854778,15.855,94.72,94.625,6.0]
[1643503854977,0.1,94.722,94.63,15.24]
[1643503855177,15.851,94.74,94.631,62.38983901]
[1643503855379,0.1,94.739,94.64,6.0]
[1643503855578,0.1,94.739,94.631,62.63983901]
[1643503855579,0.1,94.739,94.641,6.0]
[1643503855779,2.8484842,94.747,94.642,0.25]
[1643503855978,0.25,94.745,94.643,105.7]
[1643503856179,2.8484842,94.747,94.643,105.7]
[1643503856379,2.8484842,94.747,94.644,24.7394]
[1643503856676,0.2,94.749,94.646,43.18603983]
[1643503856877,0.2,94.749,94.647,0.25]
[1643503857577,0.2,94.749,94.656,6.0]
[1643503857777,0.1,94.749,94.657,105.95]
[1643503857978,0.2,94.756,94.657,105.95]
[1643503858179,0.2,94.756,94.668,41.71776487]
[1643503858376,0.2,94.756,94.669,0.25]
[1643503858579,0.2,94.756,94.668,41.71776487]
[1643503858780,3.0484842,94.756,94.668,41.71776487]
[1643503858977,0.45,94.756,94.668,41.71776487]
[1643503859178,3.2984842,94.756,94.668,41.71776487]
[1643503859380,0.45,94.756,94.644,24.4894]
[1643503859779,63.46,94.754,94.644,24.4894]
[1643503859979,15.853,94.73,94.644,24.4894]
[1643503860190,0.1,94.729,94.62,15.24]
[1643503860380,0.35,94.729,94.633,40.49040299]
[1643503860580,0.35,94.729,94.643,6.0]
[1643503860781,0.35,94.729,94.644,0.25]
[1643503861080,0.25,94.729,94.644,6.25]
[1643503861285,0.45,94.749,94.644,6.25]
[1643503861483,0.45,94.749,94.645,105.7]
[1643503861681,0.45,94.749,94.644,6.25]
[1643503861884,0.45,94.749,94.65,6.0]
[1643503862082,0.45,94.749,94.651,35.24733915]
[1643503862283,0.45,94.749,94.652,0.25]
[1643503862685,0.45,94.749,94.651,35.24733915]
[1643503862883,115.9,94.742,94.651,35.24733915]
[1643503863083,0.2,94.741,94.651,35.24733915]
[1643503863282,0.25,94.741,94.651,35.24733915]
[1643503863483,3.0,94.74,94.651,35.24733915]
[1643503863785,0.25,94.739,94.652,0.25]
[1643503863983,15.853,94.73,94.652,0.25]
[1643503864187,0.1,94.729,94.652,0.25]
[1643503864386,0.35,94.729,94.652,0.25]
[1643503864587,0.25,94.729,94.651,35.24733915]
[1643503865386,15.854,94.72,94.651,35.24733915]
[1643503865790,0.25,94.719,94.652,0.25]
[1643503866988,15.854,94.72,94.652,0.25]
[1643503867390,0.1,94.725,94.652,0.25]
[1643503867590,0.1,94.739,94.652,0.25]
[1643503868390,0.35,94.739,94.652,0.25]
[1643503868990,0.1,94.739,94.652,0.25]
[1643503870491,0.35,94.739,94.652,0.25]
[1643503872993,15.853,94.73,94.652,0.25]
[1643503873193,0.1,94.729,94.652,0.25]
[1643503873493,0.35,94.729,94.652,0.25]
[1643503873697,3.0,94.737,94.652,0.25]
[1643503873898,11.03734502,94.774,94.652,0.25]
[1643503873899,4.26218283,94.796,94.662,38.0]
[1643503874103,190.5,94.83,94.661,6.0]
[1643503874104,2.83950556,94.799,94.676,0.30304529]
[1643503874299,15.24,94.86,94.706,0.32473223]
[1643503874494,7.13072591,94.879,94.712,38.0]
[1643503874699,47.1758,94.881,94.736,0.31885729]
[1643503874897,2.84045978,94.822,94.75,15.24]
[1643503875097,2.84045978,94.869,94.76,44.0]
[1643503875299,2.84045978,94.869,94.77,15.24]
[1643503875505,2.84187234,94.892,94.792,0.32168359]
[1643503875698,5.68213947,94.936,94.8,15.24]
[1643503875897,52.74,94.94,94.81,15.24]
[1643503876097,14.26000226,94.954,94.82,21.24]
[1643503876299,14.26000226,94.954,94.83,15.24]
[1643503876500,14.26000226,94.954,94.831,105.7]
[1643503876699,25.64111129,94.925,94.84,6.0]
[1643503876900,25.64111129,94.925,94.841,0.25]
[1643503877106,10.178425,94.898,94.841,0.25]
[1643503877302,10.178425,94.898,94.831,2.48989352]
[1643503877502,3.0,94.928,94.831,2.48989352]
[1643503877903,15.82,94.92,94.831,2.48989352]
[1643503878102,63.46,94.919,94.81,15.24]
[1643503878302,3.0,94.905,94.79,15.24]
[1643503878502,3.0,94.905,94.79,21.24]
[1643503878904,0.25,94.904,94.79,21.24]
[1643503879109,27.67250895,94.904,94.791,14.29368516]
[1643503879304,27.67250895,94.904,94.791,14.54368516]
[1643503879505,27.67250895,94.904,94.801,6.0]
[1643503879906,15.826,94.89,94.802,0.25]
[1643503880108,15.826,94.89,94.81,6.0]
[1643503880307,15.826,94.89,94.81,21.24]
[1643503880934,15.826,94.89,94.81,15.24]
[1643503881134,15.833,94.85,94.734,23.0286]
[1643503881337,15.833,94.85,94.76,15.24]
[1643503881535,0.25,94.849,94.76,15.24]
[1643503881740,22.8312,94.886,94.761,105.7]
[1643503881937,9.64672607,94.889,94.761,125.48000383]
[1643503882139,0.25,94.885,94.761,125.48000383]
[1643503882337,0.25,94.885,94.762,0.25]
[1643503882537,15.826,94.88,94.771,6.0]
[1643503882737,15.826,94.88,94.78,15.24]
[1643503882937,25.67795054,94.879,94.781,0.50045988]
[1643503883136,0.25,94.879,94.79,6.0]
[1643503883337,0.25,94.879,94.8,15.24]
[1643503884340,0.25,94.879,94.801,18.41716977]
[1643503885142,0.25,94.879,94.802,0.25]
[1643503885340,30.3005526,94.879,94.802,0.25]
[1643503887242,30.3005526,94.879,94.811,6.0]
[1643503887440,0.25,94.879,94.811,6.0]
[1643503887642,0.25,94.879,94.812,0.25]
[1643503887841,0.25,94.889,94.802,0.25]
[1643503888246,15.824,94.89,94.802,0.25]
[1643503888447,28.70168228,94.889,94.802,0.25]
[1643503889249,0.1,94.905,94.802,0.25]
[1643503889449,3.0,94.907,94.802,0.25]
[1643503889648,0.25,94.906,94.802,0.25]
[1643503890249,25.36040313,94.906,94.802,0.25]
[1643503890450,0.1,94.905,94.802,0.25]
[1643503890853,15.823,94.9,94.802,0.25]
[1643503891350,0.25,94.899,94.802,0.25]
[1643503891953,0.25,94.899,94.812,105.7]
[1643503892149,0.25,94.899,94.822,6.0]
[1643503892350,0.35,94.905,94.823,2.11329394]
[1643503892751,0.35,94.905,94.833,6.0]
[1643503893154,0.35,94.905,94.834,0.25]
[1643503893552,0.1,94.919,94.834,0.25]
[1643503893752,0.1,94.919,94.835,2.24785485]
[1643503893954,3.0,94.953,94.835,2.24785485]
[1643503894152,3.0,94.95,94.845,6.0]
[1643503894454,0.1,94.966,94.846,18.03394459]
[1643503894455,26.4338205,94.953,94.846,18.03394459]
[1643503894651,0.1,94.952,94.857,105.7]
[1643503894852,9.38571579,94.938,94.858,0.25]
[1643503895051,0.1,94.942,94.867,6.0]
[1643503895250,0.1,94.966,94.868,0.25]
[1643503896052,0.1,94.966,94.868,2.74651912]
[1643503896053,29.52425622,94.947,94.868,2.74651912]
[1643503896253,0.1,94.946,94.868,2.74651912]
[1643503896855,6.29528007,94.932,94.868,2.49651912]
[1643503897253,3.0,94.928,94.868,2.49651912]
[1643503897656,0.25,94.927,94.868,2.49651912]
[1643503898858,0.25,94.931,94.868,2.49651912]
[1643503900967,0.25,94.931,94.869,0.25]
[1643503903873,1.39933144,94.914,94.869,0.25]
[1643503904473,1.39933144,94.914,94.868,2.49651912]
[1643503904677,1.39933144,94.912,94.869,0.25]
[1643503904873,1.39933144,94.911,94.869,0.25]
[1643503905074,1.39933144,94.913,94.869,0.25]
[1643503905875,0.25,94.912,94.869,0.25]
[1643503906275,0.25,94.913,94.869,0.25]
[1643503907496,0.25,94.914,94.869,0.25]
[1643503907694,1.49933144,94.915,94.869,0.25]
[1643503907894,0.25,94.914,94.868,2.49651912]
[1643503908096,1.64933144,94.914,94.868,2.49651912]
[1643503908496,1.39933144,94.914,94.869,0.25]
[1643503908696,0.25,94.913,94.869,0.25]
[1643503908896,1.39933144,94.917,94.869,0.25]
[1643503909096,1.39933144,94.918,94.868,2.49651912]
[1643503909298,25.77471578,94.927,94.868,2.49651912]
[1643503909299,0.25,94.917,94.868,2.49651912]
[1643503910598,0.25,94.917,94.869,0.25]
[1643503910599,1.39933144,94.915,94.869,0.25]
[1643503910800,0.25,94.914,94.869,0.25]
[1643503911404,1.39933144,94.918,94.869,0.25]
[1643503911604,1.64933144,94.918,94.869,0.25]
[1643503912106,1.39933144,94.917,94.869,0.25]
[1643503912306,1.64933144,94.916,94.869,0.25]
[1643503912506,0.25,94.916,94.869,0.25]
[1643503912903,0.25,94.916,94.868,2.49651912]
[1643503913503,1.64933144,94.92,94.868,2.49651912]
[1643503913904,1.39933144,94.916,94.868,2.49651912]
[1643503914307,1.39933144,94.921,94.868,2.49651912]
[1643503914506,1.39933144,94.924,94.868,2.49651912]
[1643503914911,1.39933144,94.922,94.868,2.49651912]
[1643503915306,1.64933144,94.921,94.868,2.49651912]
[1643503915908,1.39933144,94.92,94.868,2.49651912]
[1643503916307,1.64933144,94.919,94.868,2.49651912]
[1643503916709,1.39933144,94.918,94.868,2.49651912]
[1643503916908,1.64933144,94.917,94.868,2.49651912]
[1643503917109,1.39933144,94.918,94.868,2.49651912]
[1643503917308,0.25,94.916,94.868,2.49651912]
[1643503917511,1.64933144,94.916,94.831,24.3402]
[1643503917708,1.39933144,94.91,94.83,15.24]
[1643503917935,1.39933144,94.91,94.811,23.4408]
[1643503917936,1.39933144,94.905,94.831,0.25]
[1643503918108,1.39933144,94.903,94.811,23.4408]
[1643503918312,0.25,94.902,94.812,0.25]
[1643503918510,10.04482051,94.899,94.81,15.24]
[1643503918711,15.831,94.87,94.782,1.43949909]
[1643503918910,0.25,94.869,94.757,1.43949909]
[1643503919312,1.39933144,94.854,94.74,15.24]
[1643503919510,41.01471578,94.86,94.741,15.95901267]
[1643503919711,4.65122251,94.853,94.741,15.95901267]
[1643503919912,15.24,94.85,94.741,15.95901267]
[1643503920115,1.39933144,94.849,94.741,15.95901267]
[1643503920312,1.64933144,94.849,94.742,0.25]
[1643503920522,1.39933144,94.848,94.741,15.95901267]
[1643503920714,1.39933144,94.841,94.741,15.95901267]
[1643503921015,26.12782051,94.84,94.741,15.95901267]
[1643503921414,30.48384337,94.84,94.741,15.95901267]
[1643503921614,2.95669142,94.839,94.741,15.95901267]
[1643503921812,0.25,94.838,94.741,15.95901267]
[1643503922013,15.837,94.81,94.741,15.95901267]
[1643503922215,25.77471578,94.809,94.741,15.95901267]
[1643503922414,26.02471578,94.809,94.741,15.95901267]
[1643503922817,26.02471578,94.809,94.742,0.25]
[1643503927446,26.02471578,94.809,94.741,15.95901267]
[1643503928945,25.77471578,94.809,94.742,0.25]
[1643503929547,25.77471578,94.809,94.725,0.25]
[1643503930246,0.25,94.808,94.725,0.25]
[1643503930449,0.25,94.808,94.725,124.5128342]
[1643503930647,0.25,94.808,94.725,124.2628342]
[1643503930847,0.25,94.808,94.726,0.25]
[1643503933548,25.77471578,94.809,94.726,0.25]
[1643503934950,0.25,94.808,94.726,0.25]
[1643503937855,2.95669142,94.837,94.726,0.25]
[1643503938058,3.0,94.86,94.735,6.0]
[1643503938253,48.5918,94.874,94.736,47.667]
[1643503938453,48.5918,94.874,94.741,105.7]
[1643503938653,48.5918,94.874,94.746,6.0]
[1643503938853,29.93762483,94.873,94.752,105.7]
[1643503939056,15.829,94.86,94.751,6.0]
[1643503939252,15.829,94.86,94.752,0.25]
[1643503939653,0.25,94.859,94.761,18.42222683]
[1643503939856,0.25,94.872,94.762,0.25]
[1643503940054,3.20669142,94.872,94.762,105.95]
[1643503940255,15.831,94.85,94.762,105.95]
[1643503940454,5.88191146,94.849,94.762,105.95]
[1643503940658,6.13191146,94.849,94.762,0.25]
[1643503941255,6.13191146,94.849,94.761,18.42222683]
[1643503941455,15.832,94.84,94.761,18.42222683]
[1643503941859,0.25,94.839,94.761,18.42222683]
[1643503942657,0.25,94.839,94.762,0.25]
[1643503942956,0.25,94.839,94.761,18.42222683]
[1643503943957,29.93762483,94.829,94.761,18.42222683]
[1643503944358,0.25,94.828,94.761,18.42222683]
[1643503945358,0.25,94.828,94.762,0.25]
[1643503945558,15.83,94.85,94.762,105.95]
[1643503945959,0.25,94.849,94.762,0.25]
[1643503946362,0.25,94.849,94.771,6.0]
[1643503946759,0.25,94.849,94.772,0.25]
[1643503946959,1.39933144,94.866,94.772,155.62295471]
[1643503947159,1.39933144,94.88,94.8,15.82]
[1643503947362,1.39933144,94.88,94.782,6.0]
[1643503947363,1.39933144,94.88,94.801,0.25]
[1643503947559,1.39933144,94.886,94.801,2.49785471]
[1643503947759,1.39933144,94.886,94.81,15.24]
[1643503947959,1.39933144,94.903,94.811,6.0]
[1643503948161,1.39933144,94.91,94.82,6.0]
[1643503948464,1.39933144,94.911,94.821,0.25]
[1643503948661,1.39933144,94.911,94.821,6.25]
[1643503948859,1.39933144,94.911,94.822,15.07188538]
[1643503949061,1.39933144,94.911,94.832,6.0]
[1643503949260,1.39933144,94.91,94.833,0.25]
[1643503949461,1.39933144,94.91,94.832,6.0]
[1643503949662,1.39933144,94.911,94.833,105.7]
[1643503949861,1.39933144,94.91,94.833,105.7]
[1643503950062,26.91202504,94.91,94.822,15.07188538]
[1643503950261,0.35,94.909,94.823,105.7]
[1643503950460,1.74933144,94.909,94.823,105.7]
[1643503950662,0.25,94.909,94.823,105.7]
[1643503950862,0.25,94.921,94.824,0.25]
[1643503952090,0.35,94.923,94.824,0.25]
[1643503952290,1.39933144,94.922,94.824,0.25]
[1643503952692,15.819,94.92,94.824,0.25]
[1643503952891,0.35,94.919,94.824,0.25]
[1643503957304,0.35,94.919,94.822,15.07188538]
[1643503957305,15.82,94.91,94.822,15.07188538]
[1643503957605,6.46836453,94.909,94.822,15.07188538]
[1643503957804,9.67505595,94.909,94.822,15.07188538]
[1643503958004,2.95669142,94.908,94.822,15.07188538]
[1643503958404,0.25,94.907,94.822,15.07188538]
[1643503958606,15.822,94.9,94.823,0.25]
[1643503958807,0.25,94.899,94.823,0.25]
[1643503959303,3.20669142,94.899,94.822,15.07188538]
[1643503959704,0.25,94.899,94.822,15.07188538]
[1643503960111,15.822,94.9,94.822,15.07188538]
[1643503960304,0.25,94.899,94.822,15.07188538]
[1643503960704,15.822,94.9,94.823,0.25]
[1643503960906,6.46836453,94.909,94.823,0.25]
[1643503961309,6.46836453,94.909,94.823,117.35]
[1643503961906,15.819,94.92,94.823,117.35]
[1643503962306,0.25,94.919,94.823,117.35]
[1643503962908,29.85654359,94.919,94.823,117.35]
[1643503963509,15.82,94.91,94.823,117.35]
[1643503963912,0.25,94.909,94.823,11.65]
[1643503965410,15.822,94.9,94.823,11.65]
[1643503965611,6.2129927,94.899,94.823,11.65]
[1643503965809,6.4629927,94.899,94.823,11.65]
[1643503966612,0.25,94.899,94.823,11.65]
[1643503967011,0.25,94.899,94.823,11.4]
[1643503967511,31.65539433,94.899,94.823,11.4]
[1643503968310,31.65539433,94.899,94.824,0.25]
[1643503968510,1.39933144,94.913,94.823,11.4]
[1643503968711,15.819,94.92,94.824,105.7]
[1643503968910,0.25,94.912,94.824,105.7]
[1643503969813,15.82,94.91,94.825,0.25]
[1643503970413,0.25,94.909,94.825,0.25]
[1643503972816,0.25,94.909,94.824,105.7]
[1643503973015,1.39933144,94.907,94.824,105.7]
[1643503973216,1.39933144,94.906,94.824,105.7]
[1643503973416,0.25,94.906,94.824,105.7]
[1643503973618,1.39933144,94.907,94.824,105.7]
[1643503973816,0.25,94.906,94.824,105.7]
[1643503974222,0.25,94.906,94.825,0.25]
[1643503974517,1.39933144,94.9,94.825,0.25]
[1643503974921,6.95645751,94.899,94.825,0.25]
[1643503975118,8.35578895,94.899,94.825,0.25]
[1643503975318,8.35578895,94.899,94.824,105.7]
[1643503975518,1.39933144,94.897,94.824,105.7]
[1643503975718,1.39933144,94.896,94.824,105.7]
[1643503975919,1.64933144,94.896,94.824,105.7]
[1643503976119,0.25,94.896,94.824,105.7]
[1643503976319,1.64933144,94.896,94.824,105.7]
[1643503976721,1.64933144,94.896,94.825,0.25]
[1643503977119,1.39933144,94.89,94.822,15.07188538]
[1643503977324,0.25,94.889,94.79,15.24]
[1643503977521,2.85211687,94.888,94.785,105.7]
[1643503977920,3.20669142,94.887,94.785,105.7]
[1643503978120,2.85211687,94.886,94.785,105.7]
[1643503978323,0.25,94.885,94.786,39.42399583]
[1643503978520,0.25,94.885,94.786,39.67399583]
[1643503978924,0.25,94.885,94.787,105.7]
[1643503979326,0.25,94.885,94.788,0.25]
[1643503979524,15.823,94.89,94.79,15.821]
[1643503979723,2.84939054,94.889,94.79,15.821]
[1643503979924,3.09939054,94.889,94.791,0.25]
[1643503980124,2.84939054,94.888,94.787,105.7]
[1643503980423,0.25,94.887,94.787,105.7]
[1643503981327,0.25,94.887,94.788,0.25]
[1643503981523,15.823,94.89,94.788,0.25]
[1643503981524,0.25,94.889,94.788,0.25]
[1643503982723,2.83532786,94.906,94.788,0.25]
[1643503982724,2.83532786,94.905,94.791,105.7]
[1643503982924,0.25,94.889,94.797,105.7]
[1643503983124,0.25,94.889,94.808,105.7]
[1643503983326,0.25,94.889,94.809,5.32486788]
[1643503983725,0.25,94.889,94.81,105.7]
[1643503983924,0.25,94.889,94.811,0.25]
[1643503984125,48.4639,94.909,94.811,0.25]
[1643503984325,0.25,94.898,94.811,0.25]
[1643503984527,0.25,94.898,94.821,105.7]
[1643503985025,0.25,94.898,94.822,0.25]
[1643503985224,48.4639,94.909,94.832,105.7]
[1643503985449,0.25,94.908,94.832,105.7]
[1643503985724,0.25,94.908,94.833,0.25]
[1643503985926,0.25,94.908,94.834,105.7]
[1643503986325,0.25,94.908,94.835,0.25]
[1643503986725,0.25,94.908,94.833,14.60794537]
[1643503986924,0.25,94.908,94.834,0.25]
[1643503987928,0.25,94.908,94.834,105.95]
[1643503988129,0.25,94.908,94.844,111.7]
[1643503988328,2.83532786,94.927,94.845,0.25]
[1643503988529,2.83532786,94.939,94.845,8.49730607]
[1643503988729,2.83532786,94.938,94.846,105.7]
[1643503989228,2.83532786,94.938,94.847,0.25]
[1643503989430,2.83532786,94.937,94.847,0.25]
[1643503989631,2.8493281,94.925,94.847,0.25]
[1643503989829,2.03963896,94.924,94.847,0.25]
[1643503990230,0.25,94.923,94.833,14.60794537]
[1643503990430,15.818,94.92,94.833,14.60794537]
[1643503990732,2.84910409,94.919,94.833,14.60794537]
[1643503991031,3.09910409,94.919,94.834,0.25]
[1643503991231,0.25,94.919,94.834,0.25]
[1643503991429,0.25,94.919,94.834,105.95]
[1643503991632,2.84934317,94.918,94.834,105.95]
[1643503991829,0.25,94.917,94.834,105.95]
[1643503992829,0.25,94.917,94.834,105.7]
[1643503993029,15.818,94.92,94.835,0.25]
[1643503993030,0.25,94.919,94.835,0.25]
[1643503993229,15.82,94.91,94.835,0.25]
[1643503993429,25.47797768,94.909,94.835,0.25]
[1643503993631,25.72797768,94.909,94.833,14.60794537]
[1643503994835,25.72797768,94.909,94.834,0.25]
[1643503997936,25.72797768,94.909,94.833,14.60794537]
[1643503998137,25.72797768,94.909,94.834,0.25]
[1643503998936,25.72797768,94.909,94.834,105.95]
[1643503999137,25.72797768,94.909,94.834,0.25]
[1643503999737,25.72797768,94.909,94.834,105.95]
[1643503999939,25.72797768,94.909,94.834,0.25]
[1643504000137,2.95669142,94.908,94.8,15.24]
[1643504000337,3.09825462,94.907,94.791,23.8019]
[1643504000537,2.84825462,94.906,94.791,23.8019]
[1643504000737,5.80494604,94.906,94.791,23.8019]
[1643504000940,0.25,94.907,94.791,23.8019]
[1643504000941,8.8902739,94.905,94.792,105.7]
[1643504001137,15.822,94.9,94.793,17.01189389]
[1643504001438,3.09825462,94.899,94.793,17.01189389]
[1643504001640,2.84825462,94.898,94.793,17.01189389]
[1643504001839,0.25,94.897,94.804,105.7]
[1643504002640,0.25,94.897,94.805,0.25]
[1643504003042,0.25,94.905,94.805,0.25]
[1643504003343,2.84706063,94.904,94.805,23.8088]
[1643504003543,2.84706063,94.906,94.805,23.8088]
[1643504003746,0.25,94.903,94.806,105.7]
[1643504004143,2.84706063,94.902,94.807,0.25]
[1643504004343,0.25,94.901,94.807,0.25]
[1643504005242,0.25,94.901,94.817,108.96856982]
[1643504005446,15.82,94.91,94.818,0.25]
[1643504005644,26.62192786,94.929,94.818,2.49730607]
[1643504005845,2.83532786,94.935,94.827,6.0]
[1643504006044,2.83532786,94.941,94.83,21.24]
[1643504006243,2.83532786,94.941,94.831,23.7591]
[1643504006443,27.6918681,94.925,94.832,17.01189389]
[1643504006645,27.6918681,94.925,94.842,6.0]
[1643504006946,0.25,94.924,94.843,0.25]
[1643504007143,0.25,94.924,94.851,3.26856982]
[1643504007344,0.25,94.924,94.852,0.25]